{"text_format":"2","workbook":"xlsx","n_sheets":5,"sheets":["Sheet2","Sheet2 (2)","Sheet2 (3)","Sheet2 (4)","Sheet2 (5)"],"not_rendered":{"charts":0,"images":0,"macros":0,"external_links":0,"defined_names":0,"comments":0,"pivot_tables":0},"unopened":[],"bounds":{"document_bytes":16777216,"sheet_cells":100000,"run_cost":"one","rows_first":2000,"rows_last":500,"rows_between":2000,"halvings":0,"cell_chars":16384,"cell_head_chars":4096},"cells_cut":0,"cells_raw":0,"read":"whole","date_system":"1900"}

{"sheet":"Sheet2","index":0,"n_rows":43,"n_cols":31,"rows_kept":43,"cut":false,"hidden":false,"merged":[]}
["Ryan","Thomas","Hunter PCP",null,"Norris","Michael","Open PCP",null,"Ryan","Thomas","Hunter PCP",null,"Norris","Michael","Open PCP",null,"Andro","Ted","Hunter PCP",null,"Apelles","Hans","Open PCP",null,"Andro","Ted","Hunter PCP",null,"Apelles","Hans","Open PCP"]
["Day","Bill","Hunter PCP",null,"Barker","Roger","Open PCP",null,"Day","Bill","Hunter PCP",null,"Barker","Roger","Open PCP",null,"Baker","Dennis","Hunter PCP",null,"Barker","Roger","Open PCP",null,"Baker","Dennis","Hunter PCP",null,"Barker","Roger","Open PCP"]
["Himes","Thomas","Hunter PCP",null,"VanLiew","Brian","Open PCP",null,"Himes","Thomas","Hunter PCP",null,"VanLiew","Brian","Open PCP",null,"Burley","Ken","Hunter PCP",null,"Eden","Dennis","Open PCP",null,"Burley","Ken","Hunter PCP",null,"Eden","Dennis","Open PCP"]
["Eroh","John","Hunter PCP",null,"Porch","Paul","Open PCP",null,"Eroh","John","Hunter PCP",null,"Porch","Paul","Open PCP",null,"Burley","Susan","Hunter PCP",null,"Hann","Lanny","Open PCP",null,"Burley","Susan","Hunter PCP",null,"Hann","Lanny","Open PCP"]
["Miller","Wally","Hunter PCP",null,"Piatt","Will","Open PCP",null,"Miller","Wally","Hunter PCP",null,"Piatt","Will","Open PCP",null,"Cimbalo","John","Hunter PCP",null,"LaRocca","Gary","Open PCP",null,"Cimbalo","John","Hunter PCP",null,"LaRocca","Gary","Open PCP"]
["Little","Jeff","Hunter PCP",null,"Povroznyk","Vasyl","Open PCP",null,"Little","Jeff","Hunter PCP",null,"Povroznyk","Vasyl","Open PCP",null,"Daigneault","Tom","Hunter PCP",null,"Norris","Michael","Open PCP",null,"Daigneault","Tom","Hunter PCP",null,"Norris","Michael","Open PCP"]
["Kunkle","Kevin","Hunter PCP",null,"Tenney","Skip (Noel)","Open PCP",null,"Kunkle","Kevin","Hunter PCP",null,"Tenney","Skip (Noel)","Open PCP",null,"Day","Bill","Hunter PCP",null,"Otter","Albert","Open PCP",null,"Day","Bill","Hunter PCP",null,"Otter","Albert","Open PCP"]
["Kentner","Chad","Hunter PCP",null,"Apelles","Hans","Open PCP",null,"Kentner","Chad","Hunter PCP",null,"Apelles","Hans","Open PCP",null,"DeBoard","Mark","Hunter PCP",null,"Palinkas","Gary","Open PCP",null,"DeBoard","Mark","Hunter PCP",null,"Palinkas","Gary","Open PCP"]
["VanWhy","Daryl","Hunter PCP",null,"Otter","Albert","Open PCP",null,"VanWhy","Daryl","Hunter PCP",null,"Otter","Albert","Open PCP",null,"Dipple","Greg","Hunter PCP",null,"Paulsen","Rosalie","Open PCP",null,"Dipple","Greg","Hunter PCP",null,"Paulsen","Rosalie","Open PCP"]
["Pragle","Shawn","Hunter PCP",null,"Paulsen","Rosalie","Open PCP",null,"Pragle","Shawn","Hunter PCP",null,"Paulsen","Rosalie","Open PCP",null,"Dunlap","Betsy","Hunter PCP",null,"Piatt","Will","Open PCP",null,"Dunlap","Betsy","Hunter PCP",null,"Piatt","Will","Open PCP"]
["Baker","Dennis","Hunter PCP",null,"Eden","Dennis","Open PCP",null,"Baker","Dennis","Hunter PCP",null,"Eden","Dennis","Open PCP",null,"Dunlap","Douglas","Hunter PCP",null,"Porch","Paul","Open PCP",null,"Dunlap","Douglas","Hunter PCP",null,"Porch","Paul","Open PCP"]
["Rouillard","Louis-Philippe","Hunter PCP",null,"Hann","Lanny","Open PCP",null,"Rouillard","Louis-Philippe","Hunter PCP",null,"Hann","Lanny","Open PCP",null,"Duranti","Bill","Hunter PCP",null,"Povroznyk","Vasyl","Open PCP",null,"Duranti","Bill","Hunter PCP",null,"Povroznyk","Vasyl","Open PCP"]
["Szeles","Nora","Hunter PCP",null,"LaRocca","Gary","Open PCP",null,"Szeles","Nora","Hunter PCP",null,"LaRocca","Gary","Open PCP",null,"Felton, Jr.","Robert","Hunter PCP",null,"Tenney","Skip (Noel)","Open PCP",null,"Felton, Jr.","Robert","Hunter PCP",null,"Tenney","Skip (Noel)","Open PCP"]
["Felton, Jr.","Robert","Hunter PCP",null,"Garland","Anthony","Open Piston",null,"Felton, Jr.","Robert","Hunter PCP",null,"Garland","Anthony","Open Piston",null,"Hargarther","Nic","Hunter PCP",null,"VanLiew","Brian","Open PCP",null,"Hargarther","Nic","Hunter PCP",null,"VanLiew","Brian","Open PCP"]
["Miller","Tom","Hunter PCP",null,"Vandenboom","Brian","WFTF PCP",null,"Miller","Tom","Hunter PCP",null,"Vandenboom","Brian","WFTF PCP",null,"Hargarther Jr.","Nicholas","Hunter PCP",null,"Garland","Anthony","Open Piston",null,"Hargarther Jr.","Nicholas","Hunter PCP",null,"Garland","Anthony","Open Piston"]
["Duranti","Bill","Hunter PCP",null,"Bassett","Richard","WFTF PCP",null,"Duranti","Bill","Hunter PCP",null,"Bassett","Richard","WFTF PCP",null,"Himes","Thomas","Hunter PCP",null,"Bassett","Richard","WFTF PCP",null,"Himes","Thomas","Hunter PCP",null,"Bassett","Richard","WFTF PCP"]
["Ours","Joe","Hunter PCP",null,"Snyder","Joseph","WFTF PCP",null,"Ours","Joe","Hunter PCP",null,"Snyder","Joseph","WFTF PCP",null,"Himes","Dennis","Hunter PCP",null,"Brooks","Peter","WFTF PCP",null,"Himes","Dennis","Hunter PCP",null,"Brooks","Peter","WFTF PCP"]
["Tenney","Ed","Hunter PCP",null,"Sauve","Greg","WFTF PCP",null,"Tenney","Ed","Hunter PCP",null,"Sauve","Greg","WFTF PCP",null,"Kentner","Chad","Hunter PCP",null,"Brown","Ron","WFTF PCP",null,"Kentner","Chad","Hunter PCP",null,"Brown","Ron","WFTF PCP"]
["Tenney","Sue","Hunter PCP",null,"Holland","Tom","WFTF PCP",null,"Tenney","Sue","Hunter PCP",null,"Holland","Tom","WFTF PCP",null,"Kunkle","Kevin","Hunter PCP",null,"Coss","Kristen","WFTF PCP",null,"Kunkle","Kevin","Hunter PCP",null,"Coss","Kristen","WFTF PCP"]
["Vaughan","Gregory","Hunter PCP",null,"Rabbitt","Bill","WFTF PCP",null,"Vaughan","Gregory","Hunter PCP",null,"Rabbitt","Bill","WFTF PCP",null,"Little","Jeff","Hunter PCP",null,"Eroh","John","WFTF PCP",null,"Landry","Ryan","Hunter PCP",null,"Eroh","John","WFTF PCP"]
["Wade","Thomas","Hunter PCP",null,"Brooks","Peter","WFTF PCP",null,"Wade","Thomas","Hunter PCP",null,"Brooks","Peter","WFTF PCP",null,"McDaniel","Sean","Hunter PCP",null,"Harris","Mike","WFTF PCP",null,"Little","Jeff","Hunter PCP",null,"Harris","Mike","WFTF PCP"]
["Vaeth","Richard","Hunter PCP",null,"Brown","Ron","WFTF PCP",null,"Vaeth","Richard","Hunter PCP",null,"Brown","Ron","WFTF PCP",null,"McIntosh","Robert","Hunter PCP",null,"Harris","Jamir","WFTF PCP",null,"McDaniel","Sean","Hunter PCP",null,"Harris","Jamir","WFTF PCP"]
["McIntosh","Robert","Hunter PCP",null,"Parsons","Lauren","WFTF PCP",null,"McIntosh","Robert","Hunter PCP",null,"Parsons","Lauren","WFTF PCP",null,"Miller","Wally","Hunter PCP",null,"Holland","Tom","WFTF PCP",null,"McIntosh","Robert","Hunter PCP",null,"Holland","Tom","WFTF PCP"]
["Himes","Dennis","Hunter PCP",null,"Morales","Manuel","WFTF PCP",null,"Himes","Dennis","Hunter PCP",null,"Morales","Manuel","WFTF PCP",null,"Miller","Tom","Hunter PCP",null,"Hughes","Ken","WFTF PCP",null,"Miller","Wally","Hunter PCP",null,"Hughes","Ken","WFTF PCP"]
["Burley","Ken","Hunter PCP",null,"Hughes","Ken","WFTF PCP",null,"Burley","Ken","Hunter PCP",null,"Hughes","Ken","WFTF PCP",null,"Morrison Sr.","Jody","Hunter PCP",null,"Morales","Manuel","WFTF PCP",null,"Miller","Tom","Hunter PCP",null,"Morales","Manuel","WFTF PCP"]
["Burley","Susan","Hunter PCP",null,"Thomas","Glenn","WFTF PCP",null,"Burley","Susan","Hunter PCP",null,"Thomas","Glenn","WFTF PCP",null,"Ours","Joe","Hunter PCP",null,"Paddock","Jeff","WFTF PCP",null,"Morrison Sr.","Jody","Hunter PCP",null,"Paddock","Jeff","WFTF PCP"]
["Rogers","Douglas","Hunter PCP",null,"Paddock","Jeff","WFTF PCP",null,"Rogers","Douglas","Hunter PCP",null,"Paddock","Jeff","WFTF PCP",null,"Pragle","Shawn","Hunter PCP",null,"Parsons","Lauren","WFTF PCP",null,"Ours","Joe","Hunter PCP",null,"Parsons","Lauren","WFTF PCP"]
["Rogers","Levi","Hunter PCP",null,"Patner","Tyler","WFTF PCP",null,"Rogers","Levi","Hunter PCP",null,"Patner","Tyler","WFTF PCP",null,"Rehm","Rick","Hunter PCP",null,"Patner","Tyler","WFTF PCP",null,"Pragle","Shawn","Hunter PCP",null,"Patner","Tyler","WFTF PCP"]
["Dunlap","Betsy","Hunter PCP",null,"Coss","Kristen","WFTF PCP",null,"Dunlap","Betsy","Hunter PCP",null,"Coss","Kristen","WFTF PCP",null,"Rogers","Douglas","Hunter PCP",null,"Rabbitt","Bill","WFTF PCP",null,"Rehm","Rick","Hunter PCP",null,"Rabbitt","Bill","WFTF PCP"]
["Dunlap","Douglas","Hunter PCP",null,"Harris","Mike","WFTF PCP",null,"Dunlap","Douglas","Hunter PCP",null,"Harris","Mike","WFTF PCP",null,"Rogers","Levi","Hunter PCP",null,"Sauve","Greg","WFTF PCP",null,"Rogers","Douglas","Hunter PCP",null,"Sauve","Greg","WFTF PCP"]
["Andro","Ted","Hunter PCP",null,"Harris","Jamir","WFTF PCP",null,"Andro","Ted","Hunter PCP",null,"Harris","Jamir","WFTF PCP",null,"Rouillard","Louis-Philippe","Hunter PCP",null,"Snyder","Joseph","WFTF PCP",null,"Rogers","Levi","Hunter PCP",null,"Snyder","Joseph","WFTF PCP"]
["Cimbalo","John","Hunter PCP",null,"LaRocca","Jerry","WFTF Piston",null,"Cimbalo","John","Hunter PCP",null,"LaRocca","Jerry","WFTF Piston",null,"Ryan","Thomas","Hunter PCP",null,"Thomas","Glenn","WFTF PCP",null,"Rouillard","Louis-Philippe","Hunter PCP",null,"Thomas","Glenn","WFTF PCP"]
["Dipple","Greg","Hunter PCP",null,"Gonzales","Virgilio","WFTF Piston",null,"Dipple","Greg","Hunter PCP",null,"Gonzales","Virgilio","WFTF Piston",null,"Szeles","Nora","Hunter PCP",null,"Vandenboom","Brian","WFTF PCP",null,"Ryan","Thomas","Hunter PCP",null,"Vandenboom","Brian","WFTF PCP"]
["Daigneault","Tom","Hunter PCP",null,"MacSweyn","Tim","WFTF Piston",null,"Daigneault","Tom","Hunter PCP",null,"MacSweyn","Tim","WFTF Piston",null,"Tenney","Ed","Hunter PCP",null,"Apelles","Raymond","WFTF Piston",null,"Szeles","Nora","Hunter PCP",null,"Apelles","Raymond","WFTF Piston"]
["McDaniel","Sean","Hunter PCP",null,"Medina-Gomez","Hector","WFTF Piston",null,"Morrison Sr.","Jody","Hunter PCP",null,"Medina-Gomez","Hector","WFTF Piston",null,"Tenney","Sue","Hunter PCP",null,"Brackett","Matt","WFTF Piston",null,"Tenney","Ed","Hunter PCP",null,"Brackett","Matt","WFTF Piston"]
["Manktelow","Paul","Hunter Piston",null,"Apelles","Raymond","WFTF Piston",null,"Rehm","Rick","Hunter PCP",null,"Apelles","Raymond","WFTF Piston",null,"Vaeth","Richard","Hunter PCP",null,"Cunningham","Dave","WFTF Piston",null,"Tenney","Sue","Hunter PCP",null,"Cunningham","Dave","WFTF Piston"]
["Wilcox","James","Hunter Piston",null,"Thomas","Nathan","WFTF Piston",null,"Hargarther","Nic","Hunter PCP",null,"Thomas","Nathan","WFTF Piston",null,"VanWhy","Daryl","Hunter PCP",null,"Gonzales","Virgilio","WFTF Piston",null,"Vaeth","Richard","Hunter PCP",null,"Gonzales","Virgilio","WFTF Piston"]
["Brewer","Eric","Hunter Piston",null,"Cunningham","Dave","WFTF Piston",null,"Hargarther Jr.","Nicholas","Hunter PCP",null,"Cunningham","Dave","WFTF Piston",null,"Vaughan","Gregory","Hunter PCP",null,"LaRocca","Jerry","WFTF Piston",null,"VanWhy","Daryl","Hunter PCP",null,"LaRocca","Jerry","WFTF Piston"]
["Brewer","Peg","Hunter Piston",null,"Brackett","Matt","WFTF Piston",null,"Manktelow","Paul","Hunter Piston",null,"Brackett","Matt","WFTF Piston",null,"Wade","Thomas","Hunter PCP",null,"MacSweyn","Tim","WFTF Piston",null,"Vaughan","Gregory","Hunter PCP",null,"MacSweyn","Tim","WFTF Piston"]
["Shirhall","Gregory","Hunter Piston",null,"Evans","Craig","Freestyle PCP",null,"Wilcox","James","Hunter Piston",null,"Evans","Craig","Freestyle PCP",null,"Manktelow","Paul","Hunter Piston",null,"Medina-Gomez","Hector","WFTF Piston",null,"Wade","Thomas","Hunter PCP",null,"Medina-Gomez","Hector","WFTF Piston"]
[{"$nulls":8},"Brewer","Eric","Hunter Piston",{"$nulls":5},"Shirhall","Gregory","Hunter Piston",null,"Thomas","Nathan","WFTF Piston",null,"Manktelow","Paul","Hunter Piston",null,"Thomas","Nathan","WFTF Piston"]
[{"$nulls":8},"Brewer","Peg","Hunter Piston",{"$nulls":5},"Wilcox","James","Hunter Piston",null,"Evans","Craig","Freestyle PCP",null,"Shirhall","Gregory","Hunter Piston",null,"Evans","Craig","Freestyle PCP"]
[{"$nulls":8},"Shirhall","Gregory","Hunter Piston",{"$nulls":13},"Wilcox","James","Hunter Piston"]

{"sheet":"Sheet2 (2)","index":1,"n_rows":89,"n_cols":9,"rows_kept":89,"cut":false,"hidden":false,"merged":[]}
["Last Name","First Name","Division",null,"Woods","Field","Total","Overall Place","% vs Match High"]
["Cimbalo","John","Hunter PCP",null,43,0,{"$f":"IF(E2=0,\"DNF\",IF(F2=0,\"DNF\",SUM(E2:F2)))","v":"DNF"}]
["Daigneault","Tom","Hunter PCP",null,33,0,"DNF"]
["Felton, Jr.","Robert","Hunter PCP",null,33,0,"DNF"]
["McIntosh","Robert","Hunter PCP",null,38,0,"DNF"]
["Miller","Tom","Hunter PCP",null,41,0,"DNF"]
["Rehm","Rick","Hunter PCP",null,40,0,"DNF"]
["Rouillard","Louis-Philippe","Hunter PCP",null,0,0,"DNF"]
["Szeles","Nora","Hunter PCP",null,0,0,"DNF"]
["Tenney","Ed","Hunter PCP",null,33,0,"DNF"]
["Tenney","Sue","Hunter PCP",null,45,0,"DNF"]
["Varney","Paul","Hunter PCP",null,43,0,"DNF"]
["Barker","Roger","Open PCP",null,0,27,"DNF"]
["Otter","Albert","Open PCP",null,0,34,"DNF"]
["Paulsen","Rosalie","Open PCP",null,0,24,"DNF"]
["Tenney","Skip (Noel)","Open PCP",null,0,37,"DNF"]
["Bassett","Richard","WFTF PCP",null,0,37,"DNF"]
["Coss","Kristen","WFTF PCP",null,0,0,"DNF"]
["Harris","Mike","WFTF PCP",null,0,33,"DNF"]
["Harris","Jamir","WFTF PCP",null,0,14,"DNF"]
["Patner","Tyler","WFTF PCP",null,58,0,"DNF"]
["Rabbitt","Bill","WFTF PCP",null,52,0,"DNF"]
["Vandenboom","Brian","WFTF PCP",null,0,43,"DNF"]
["LaRocca","Jerry","WFTF Piston",null,0,26,"DNF"]
["Apelles","Hans","Freestyle PCP",null,0,27,"DNF"]
["John","Myers","JUNIOR",null,83,90,173]
["Hargarther Jr.","Nicholas","JUNIOR",null,62,60,122]
["Himes","Thomas","Hunter PCP",null,53,55,108,1,{"$f":"G28/MAX($G$28:$G$89)","v":1}]
["Himes","Dennis","Hunter PCP",null,57,51,108,2,{"$f":"G29/MAX($G$28:$G$89)","v":1}]
["Piatt","Will","Open PCP",null,57,49,106,3,0.981481481481482]
["Little","Jeff","Hunter PCP",null,53,51,104,4,0.962962962962963]
["McDaniel","Sean","Hunter PCP",null,53,51,104,5,0.962962962962963]
["Sauve","Greg","WFTF PCP",null,54,48,102,6,0.944444444444444]
["Brooks","Peter","WFTF PCP",null,57,44,101,7,0.935185185185185]
["Paddock","Jeff","WFTF PCP",null,55,46,101,8,0.935185185185185]
["Day","Bill","Hunter PCP",null,54,46,100,9,0.925925925925926]
["Morales","Manuel","WFTF PCP",null,58,42,100,10,0.925925925925926]
["VanLiew","Brian","Open PCP",null,57,42,99,11,0.916666666666667]
["Parsons","Lauren","WFTF PCP",null,53,46,99,12,0.916666666666667]
["Pragle","Shawn","Hunter PCP",null,49,49,98,13,0.907407407407407]
["Hughes","Ken","WFTF PCP",null,57,41,98,14,0.907407407407407]
["Dunlap","Douglas","Hunter PCP",null,50,46,96,15,0.888888888888889]
["Ryan","Thomas","Hunter PCP",null,52,43,95,16,0.87962962962963]
["Holland","Tom","WFTF PCP",null,55,40,95,17,0.87962962962963]
["Kentner","Chad","Hunter PCP",null,51,43,94,18,0.87037037037037]
["Brown","Ron","WFTF PCP",null,56,38,94,19,0.87037037037037]
["Vaughan","Gregory","Hunter PCP",null,51,42,93,20,0.861111111111111]
["Kunkle","Kevin","Hunter PCP",null,46,46,92,21,0.851851851851852]
["Landry","Ryan","Hunter PCP",null,45,46,91,22,0.842592592592593]
["Palinkas","Gary","Open PCP",null,49,41,90,23,0.833333333333333]
["DeBoard","Mark","Hunter PCP",null,44,45,89,24,0.824074074074074]
["Thomas","Nathan","WFTF Piston",null,51,38,89,25,0.824074074074074]
["Shirhall","Gregory","Hunter Piston",null,45,43,88,26,0.814814814814815]
["Wade","Thomas","Hunter PCP",null,47,40,87,27,0.805555555555556]
["Apelles","Raymond","WFTF Piston",null,51,36,87,28,0.805555555555556]
["MacSweyn","Tim","WFTF Piston",null,52,35,87,29,0.805555555555556]
["Hann","Lanny","Open PCP",null,45,40,85,30,0.787037037037037]
["Gonzales","Virgilio","WFTF Piston",null,46,39,85,31,0.787037037037037]
["Baker","Dennis","Hunter PCP",null,45,38,83,32,0.768518518518518]
["Hargarther","Nic","Hunter PCP",null,38,45,83,33,0.768518518518518]
["Vaeth","Richard","Hunter PCP",null,46,37,83,34,{"$f":"G61/MAX($G$28:$G$89)","v":0.768518518518518}]
["Norris","Michael","Open PCP",null,45,38,83,35,0.768518518518518]
["VanWhy","Daryl","Hunter PCP",null,43,38,81,36,0.75]
["Eden","Dennis","Open PCP",null,47,34,81,37,0.75]
["Porch","Paul","Open PCP",null,38,42,80,38,0.740740740740741]
["Dunlap","Betsy","Hunter PCP",null,45,34,{"$f":"IF(E66=0,\"DNF\",IF(F66=0,\"DNF\",SUM(E66:F66)))","v":79},39,0.731481481481482]
["Morrison Sr.","Jody","Hunter PCP",null,44,35,79,40,0.731481481481482]
["Rogers","Levi","Hunter PCP",null,37,39,76,41,0.703703703703704]
["Eroh","John","WFTF PCP",null,51,25,76,42,0.703703703703704]
["Brackett","Matt","WFTF Piston",null,43,33,76,43,0.703703703703704]
["Snyder","Joseph","WFTF PCP",null,46,29,75,44,0.694444444444444]
["Thomas","Glenn","WFTF PCP",null,44,31,75,45,0.694444444444444]
["Burley","Ken","Hunter PCP",null,38,36,74,46,0.685185185185185]
["LaRocca","Gary","Open PCP",null,41,33,74,47,0.685185185185185]
["Rogers","Douglas","Hunter PCP",null,38,35,73,48,0.675925925925926]
["Medina-Gomez","Hector","WFTF Piston",null,44,28,72,49,0.666666666666667]
["Manktelow","Paul","Hunter Piston",null,39,32,71,50,0.657407407407407]
["Dipple","Greg","Hunter PCP",null,38,29,67,51,0.62037037037037]
["Povroznyk","Vasyl","Open PCP",null,39,28,67,52,0.62037037037037]
["Evans","Craig","Freestyle PCP",null,41,25,66,53,0.611111111111111]
["Andro","Ted","Hunter PCP",null,42,23,65,54,0.601851851851852]
["Burley","Susan","Hunter PCP",null,37,28,65,55,0.601851851851852]
["Duranti","Bill","Hunter PCP",null,38,25,63,56,0.583333333333333]
["Miller","Wally","Hunter PCP",null,28,25,53,57,0.490740740740741]
["Landry","Reg","Hunter PCP",null,25,26,51,58,0.472222222222222]
["Wilcox","James","Hunter Piston",null,28,20,48,59,0.444444444444444]
["Ours","Joe","Hunter PCP",null,24,20,44,60,0.407407407407407]
["Cunningham","Dave","WFTF Piston",null,22,19,41,61,0.37962962962963]
["Garland","Anthony","Open Piston",null,23,14,37,62,0.342592592592593]

{"sheet":"Sheet2 (3)","index":2,"n_rows":89,"n_cols":10,"rows_kept":89,"cut":false,"hidden":false,"merged":[]}
["Last Name","First Name","Division",null,"Woods","Field","Total","Place in Class","% vs Match High"]
["Apelles","Hans","Freestyle PCP",null,0,27,{"$f":"IF(E2=0,\"DNF\",IF(F2=0,\"DNF\",SUM(E2:F2)))","v":"DNF"}]
["Evans","Craig","Freestyle PCP",null,41,25,66,1,{"$f":"G3/$J$3","v":0.611111111111111},108]
["Cimbalo","John","Hunter PCP",null,43,0,"DNF",2,{"$f":"G4/$J$3","v":{"$error":"#VALUE!"}}]
["Daigneault","Tom","Hunter PCP",null,33,0,"DNF",null,{"$error":"#VALUE!"}]
["Felton, Jr.","Robert","Hunter PCP",null,33,0,"DNF",null,{"$error":"#VALUE!"}]
["McIntosh","Robert","Hunter PCP",null,38,0,"DNF",null,{"$error":"#VALUE!"}]
["Miller","Tom","Hunter PCP",null,41,0,"DNF",null,{"$error":"#VALUE!"}]
["Rehm","Rick","Hunter PCP",null,40,0,"DNF",null,{"$error":"#VALUE!"}]
["Rouillard","Louis-Philippe","Hunter PCP",null,0,0,"DNF",null,{"$error":"#VALUE!"}]
["Szeles","Nora","Hunter PCP",null,0,0,"DNF",null,{"$error":"#VALUE!"}]
["Tenney","Ed","Hunter PCP",null,33,0,"DNF",null,{"$error":"#VALUE!"}]
["Tenney","Sue","Hunter PCP",null,45,0,"DNF",null,{"$error":"#VALUE!"}]
["Varney","Paul","Hunter PCP",null,43,0,"DNF",null,{"$error":"#VALUE!"}]
["Himes","Thomas","Hunter PCP",null,53,55,108,1,1]
["Himes","Dennis","Hunter PCP",null,57,51,108,2,1]
["Little","Jeff","Hunter PCP",null,53,51,104,3,0.962962962962963]
["McDaniel","Sean","Hunter PCP",null,53,51,104,4,0.962962962962963]
["Day","Bill","Hunter PCP",null,54,46,100,5,0.925925925925926]
["Pragle","Shawn","Hunter PCP",null,49,49,98,6,0.907407407407407]
["Dunlap","Douglas","Hunter PCP",null,50,46,96,7,0.888888888888889]
["Ryan","Thomas","Hunter PCP",null,52,43,95,8,0.87962962962963]
["Kentner","Chad","Hunter PCP",null,51,43,94,9,0.87037037037037]
["Vaughan","Gregory","Hunter PCP",null,51,42,93,10,0.861111111111111]
["Kunkle","Kevin","Hunter PCP",null,46,46,92,11,0.851851851851852]
["Landry","Ryan","Hunter PCP",null,45,46,91,12,0.842592592592593]
["DeBoard","Mark","Hunter PCP",null,44,45,89,13,0.824074074074074]
["Wade","Thomas","Hunter PCP",null,47,40,87,14,0.805555555555556]
["Baker","Dennis","Hunter PCP",null,45,38,83,15,0.768518518518518]
["Hargarther","Nic","Hunter PCP",null,38,45,83,16,0.768518518518518]
["Vaeth","Richard","Hunter PCP",null,46,37,83,17,0.768518518518518]
["VanWhy","Daryl","Hunter PCP",null,43,38,81,18,0.75]
["Dunlap","Betsy","Hunter PCP",null,45,34,79,19,0.731481481481482]
["Morrison Sr.","Jody","Hunter PCP",null,44,35,79,20,0.731481481481482]
["Rogers","Levi","Hunter PCP",null,37,39,76,21,0.703703703703704]
["Burley","Ken","Hunter PCP",null,38,36,74,22,{"$f":"G36/$J$3","v":0.685185185185185}]
["Rogers","Douglas","Hunter PCP",null,38,35,73,23,0.675925925925926]
["Dipple","Greg","Hunter PCP",null,38,29,67,24,0.62037037037037]
["Andro","Ted","Hunter PCP",null,42,23,65,25,0.601851851851852]
["Burley","Susan","Hunter PCP",null,37,28,65,26,0.601851851851852]
["Duranti","Bill","Hunter PCP",null,38,25,63,27,0.583333333333333]
["Miller","Wally","Hunter PCP",null,28,25,53,28,0.490740740740741]
["Landry","Reg","Hunter PCP",null,25,26,51,29,0.472222222222222]
["Ours","Joe","Hunter PCP",null,24,20,44,30,0.407407407407407]
["Shirhall","Gregory","Hunter Piston",null,45,43,88,1,0.814814814814815]
["Manktelow","Paul","Hunter Piston",null,39,32,71,2,0.657407407407407]
["Wilcox","James","Hunter Piston",null,28,20,48,3,0.444444444444444]
["John","Myers","JUNIOR",null,83,90,173,1]
["Hargarther Jr.","Nicholas","JUNIOR",null,62,60,122,2]
["Barker","Roger","Open PCP",null,0,27,"DNF",23,{"$error":"#VALUE!"}]
["Otter","Albert","Open PCP",null,0,34,"DNF",24,{"$error":"#VALUE!"}]
["Paulsen","Rosalie","Open PCP",null,0,24,"DNF",25,{"$error":"#VALUE!"}]
["Tenney","Skip (Noel)","Open PCP",null,0,37,"DNF",26,{"$error":"#VALUE!"}]
["Piatt","Will","Open PCP",null,57,49,106,1,0.981481481481482]
["VanLiew","Brian","Open PCP",null,57,42,99,2,0.916666666666667]
["Palinkas","Gary","Open PCP",null,49,41,90,3,0.833333333333333]
["Hann","Lanny","Open PCP",null,45,40,85,4,0.787037037037037]
["Norris","Michael","Open PCP",null,45,38,83,5,0.768518518518518]
["Eden","Dennis","Open PCP",null,47,34,81,6,0.75]
["Porch","Paul","Open PCP",null,38,42,80,7,0.740740740740741]
["LaRocca","Gary","Open PCP",null,41,33,74,8,0.685185185185185]
["Povroznyk","Vasyl","Open PCP",null,39,28,67,9,0.62037037037037]
["Garland","Anthony","Open Piston",null,23,14,37,1,0.342592592592593]
["Bassett","Richard","WFTF PCP",null,0,37,"DNF",37,{"$error":"#VALUE!"}]
["Coss","Kristen","WFTF PCP",null,0,0,"DNF",38,{"$error":"#VALUE!"}]
["Harris","Mike","WFTF PCP",null,0,33,{"$f":"IF(E66=0,\"DNF\",IF(F66=0,\"DNF\",SUM(E66:F66)))","v":"DNF"},39,{"$error":"#VALUE!"}]
["Harris","Jamir","WFTF PCP",null,0,14,"DNF",40,{"$error":"#VALUE!"}]
["Patner","Tyler","WFTF PCP",null,58,0,"DNF",41,{"$f":"G68/$J$3","v":{"$error":"#VALUE!"}}]
["Rabbitt","Bill","WFTF PCP",null,52,0,"DNF",42,{"$error":"#VALUE!"}]
["Vandenboom","Brian","WFTF PCP",null,0,43,"DNF",43,{"$error":"#VALUE!"}]
["Sauve","Greg","WFTF PCP",null,54,48,102,1,0.944444444444444]
["Brooks","Peter","WFTF PCP",null,57,44,101,2,0.935185185185185]
["Paddock","Jeff","WFTF PCP",null,55,46,101,3,0.935185185185185]
["Morales","Manuel","WFTF PCP",null,58,42,100,4,0.925925925925926]
["Parsons","Lauren","WFTF PCP",null,53,46,99,5,0.916666666666667]
["Hughes","Ken","WFTF PCP",null,57,41,98,6,0.907407407407407]
["Holland","Tom","WFTF PCP",null,55,40,95,7,0.87962962962963]
["Brown","Ron","WFTF PCP",null,56,38,94,8,0.87037037037037]
["Eroh","John","WFTF PCP",null,51,25,76,9,0.703703703703704]
["Snyder","Joseph","WFTF PCP",null,46,29,75,10,0.694444444444444]
["Thomas","Glenn","WFTF PCP",null,44,31,75,11,0.694444444444444]
["LaRocca","Jerry","WFTF Piston",null,0,26,"DNF",55,{"$error":"#VALUE!"}]
["Thomas","Nathan","WFTF Piston",null,51,38,89,1,0.824074074074074]
["Apelles","Raymond","WFTF Piston",null,51,36,87,2,0.805555555555556]
["MacSweyn","Tim","WFTF Piston",null,52,35,87,3,0.805555555555556]
["Gonzales","Virgilio","WFTF Piston",null,46,39,85,4,0.787037037037037]
["Brackett","Matt","WFTF Piston",null,43,33,76,5,0.703703703703704]
["Medina-Gomez","Hector","WFTF Piston",null,44,28,72,6,0.666666666666667]
["Cunningham","Dave","WFTF Piston",null,22,19,41,7,0.37962962962963]

{"sheet":"Sheet2 (4)","index":3,"n_rows":38,"n_cols":9,"rows_kept":38,"cut":false,"hidden":false,"merged":[]}
["Last Name","First Name","Division",null,"Total","Overall Place","% vs Match High"]
["Rabbitt","Bill","Open",null,49,1,{"$f":"E2/$I$2","v":1},null,49]
["Thomas","Nathan","Open",null,49,2,{"$f":"E3/$I$2","v":1},108]
["Kunkle","Kevin","Hunter",null,45,3,0.918367346938776]
["Paddock","Jeff","Open",null,44,4,0.897959183673469]
["Patner","Tyle","Open",null,44,5,0.897959183673469]
["Evans","Craig","Hunter",null,43,6,0.877551020408163]
["Brown","Ron","Hunter",null,42,7,0.857142857142857]
["Porch","Paul","Hunter",null,39,8,0.795918367346939]
["McDaniel","Sean","Hunter",null,39,9,0.795918367346939]
["Norris","Michael","Hunter",null,38,10,0.775510204081633]
["Morales","Manuel","Open",null,38,11,0.775510204081633]
["Day","Bill","Hunter",null,36,12,0.73469387755102]
["Palinkas","Gary","Hunter",null,36,13,0.73469387755102]
["Povroznyk","Vasyl","Open",null,36,14,0.73469387755102]
["Cimbalo","John","Hunter",null,33,15,0.673469387755102]
["Thomas","Glenn","Hunter",null,33,16,0.673469387755102]
["Miller","Tom","Hunter",null,31,17,0.63265306122449]
["Landry","Ryan","Hunter",null,30,18,0.612244897959184]
["Pragle","Shawn","Hunter",null,26,19,0.530612244897959]
["Andro","Ted","Hunter",null,24,20,0.489795918367347]
["Morrison Sr","Jody","Hunter",null,24,21,0.489795918367347]
["Vanwhy","Daryk","Hunter",null,24,22,0.489795918367347]
["Tenney","Skip (Noel)","Hunter",null,22,23,0.448979591836735]
["Tenney","Ed","Hunter",null,20,24,0.408163265306122]
["McIntosh","Robert","Hunter",null,19,25,0.387755102040816]
["Miller","Wally","Hunter",null,18,26,0.36734693877551]
["Landry","Reg","Hunter",null,17,27,0.346938775510204]
["Eden","Dennis","Open",null,17,28,0.346938775510204]
["Vaughan","Gregory","Hunter",null,16,29,0.326530612244898]
["Dunlap","Douglas","Hunter",null,15,30,0.306122448979592]
["Felton, Jr","Robert","Hunter",null,14,31,0.285714285714286]
["Gonzales","Virgilio","Hands",null,9,32,0.183673469387755]
["Eroh","John","Hands",null,8,33,0.163265306122449]
["Hann","Lanny","Open",null,8,34,0.163265306122449]
["Apelles","Raymond","Hands",null,7,35,0.142857142857143]
["Garland","Anthony","Open",null,6,36,0.122448979591837]
["Wade","Thomas","Hands",null,1,37,0.0204081632653061]

{"sheet":"Sheet2 (5)","index":4,"n_rows":38,"n_cols":9,"rows_kept":38,"cut":false,"hidden":false,"merged":[]}
["Last Name","First Name","Division",null,"Total","Overall Place","% vs Match High"]
["Gonzales","Virgilio","Hands",null,9,1,{"$f":"E2/$I$2","v":0.183673469387755},null,49]
["Eroh","John","Hands",null,8,2,{"$f":"E3/$I$2","v":0.163265306122449},108]
["Apelles","Raymond","Hands",null,7,3,{"$f":"E4/$I$2","v":0.142857142857143}]
["Wade","Thomas","Hands",null,1,4,{"$f":"E5/$I$2","v":0.0204081632653061}]
["Kunkle","Kevin","Hunter",null,45,1,{"$f":"E6/$I$2","v":0.918367346938776}]
["Evans","Craig","Hunter",null,43,2,{"$f":"E7/$I$2","v":0.877551020408163}]
["Brown","Ron","Hunter",null,42,3,{"$f":"E8/$I$2","v":0.857142857142857}]
["Porch","Paul","Hunter",null,39,4,{"$f":"E9/$I$2","v":0.795918367346939}]
["McDaniel","Sean","Hunter",null,39,5,{"$f":"E10/$I$2","v":0.795918367346939}]
["Norris","Michael","Hunter",null,38,6,{"$f":"E11/$I$2","v":0.775510204081633}]
["Day","Bill","Hunter",null,36,7,{"$f":"E12/$I$2","v":0.73469387755102}]
["Palinkas","Gary","Hunter",null,36,8,{"$f":"E13/$I$2","v":0.73469387755102}]
["Cimbalo","John","Hunter",null,33,9,{"$f":"E14/$I$2","v":0.673469387755102}]
["Thomas","Glenn","Hunter",null,33,10,{"$f":"E15/$I$2","v":0.673469387755102}]
["Miller","Tom","Hunter",null,31,11,{"$f":"E16/$I$2","v":0.63265306122449}]
["Landry","Ryan","Hunter",null,30,12,{"$f":"E17/$I$2","v":0.612244897959184}]
["Pragle","Shawn","Hunter",null,26,13,{"$f":"E18/$I$2","v":0.530612244897959}]
["Andro","Ted","Hunter",null,24,14,{"$f":"E19/$I$2","v":0.489795918367347}]
["Morrison Sr","Jody","Hunter",null,24,15,{"$f":"E20/$I$2","v":0.489795918367347}]
["Vanwhy","Daryk","Hunter",null,24,16,{"$f":"E21/$I$2","v":0.489795918367347}]
["Tenney","Skip (Noel)","Hunter",null,22,17,{"$f":"E22/$I$2","v":0.448979591836735}]
["Tenney","Ed","Hunter",null,20,18,{"$f":"E23/$I$2","v":0.408163265306122}]
["McIntosh","Robert","Hunter",null,19,19,{"$f":"E24/$I$2","v":0.387755102040816}]
["Miller","Wally","Hunter",null,18,20,{"$f":"E25/$I$2","v":0.36734693877551}]
["Landry","Reg","Hunter",null,17,21,{"$f":"E26/$I$2","v":0.346938775510204}]
["Vaughan","Gregory","Hunter",null,16,22,{"$f":"E27/$I$2","v":0.326530612244898}]
["Dunlap","Douglas","Hunter",null,15,23,{"$f":"E28/$I$2","v":0.306122448979592}]
["Felton, Jr","Robert","Hunter",null,14,24,{"$f":"E29/$I$2","v":0.285714285714286}]
["Rabbitt","Bill","Open",null,49,1,{"$f":"E30/$I$2","v":1}]
["Thomas","Nathan","Open",null,49,2,{"$f":"E31/$I$2","v":1}]
["Paddock","Jeff","Open",null,44,3,{"$f":"E32/$I$2","v":0.897959183673469}]
["Patner","Tyle","Open",null,44,4,{"$f":"E33/$I$2","v":0.897959183673469}]
["Morales","Manuel","Open",null,38,5,{"$f":"E34/$I$2","v":0.775510204081633}]
["Povroznyk","Vasyl","Open",null,36,6,{"$f":"E35/$I$2","v":0.73469387755102}]
["Eden","Dennis","Open",null,17,7,{"$f":"E36/$I$2","v":0.346938775510204}]
["Hann","Lanny","Open",null,8,8,{"$f":"E37/$I$2","v":0.163265306122449}]
["Garland","Anthony","Open",null,6,9,{"$f":"E38/$I$2","v":0.122448979591837}]